bitfinex/quotes_SOLUSD_20250416
["timestamp","ask_amount","ask_price","bid_price","bid_amount"]
[1744763934190,9.44685426,126.83,126.77,19.72075412]
[1744763934191,9.44685426,126.83,126.77,7.88783419]
[1744763934400,33.42335913,126.82,126.77,40.77371027]
[1744763934984,33.42335913,126.82,126.78,14.77371027]
[1744763935206,26.53530318,126.82,126.79,14.77371027]
[1744763936503,9.44698632,126.83,126.81,14.77371027]
[1744763937189,1.5622,126.83,126.8,14.77371027]
[1744763937499,1.5622,126.83,126.81,14.77371027]
[1744763937700,1.5622,126.83,126.8,14.77371027]
[1744763938493,9.44689602,126.83,126.8,14.77371027]
[1744763938681,1.5622,126.83,126.8,14.77371027]
[1744763938880,9.44681018,126.83,126.8,14.77371027]
[1744763939080,1.5622,126.83,126.8,14.77371027]
[1744763939290,1.5622,126.83,126.81,14.77371027]
[1744763940500,1.5622,126.83,126.8,14.77371027]
[1744763940798,9.44688088,126.83,126.8,14.77371027]
[1744763941582,9.44688088,126.83,126.79,40.77371027]
[1744763942293,9.44688088,126.83,126.8,14.77371027]
[1744763942903,1.5622,126.83,126.8,14.77371027]
[1744763943090,8.94680303,126.83,126.8,14.77371027]
[1744763943582,8.94680303,126.83,126.79,40.77371027]
[1744763943781,18.64964886,126.82,126.79,26.0]
[1744763944584,18.64964886,126.82,126.76,90.91863883]
[1744763944788,18.64964886,126.82,126.78,14.77371027]
[1744763945195,1.0622,126.83,126.8,14.77371027]
[1744763945910,8.94685855,126.83,126.8,14.77371027]
[1744763947983,1.0622,126.83,126.8,14.77371027]
[1744763948510,8.94692562,126.83,126.8,14.77371027]
[1744763949306,0.063,126.84,126.82,14.77371027]
[1744763949488,0.063,126.84,126.83,14.77371027]
[1744763951290,0.063,126.84,126.83,22.65828016]
[1744763951602,0.063,126.86,126.83,22.65828016]
[1744763951603,0.063,126.86,126.85,26.0]
[1744763951798,0.063,126.88,126.85,40.77371027]
[1744763951991,0.063,126.88,126.87,14.77371027]
[1744763954012,0.063,126.88,126.87,22.65579429]
[1744763955686,0.063,126.88,126.87,22.79795586]
[1744763956694,0.063,126.88,126.87,22.65579429]
[1744763959046,0.063,126.89,126.87,22.65579429]
[1744763959047,0.063,126.89,126.88,0.14216157]
[1744763959334,0.063,126.91,126.9,0.14216157]
[1744763959633,0.063,126.93,126.92,26.14216157]
[1744763959814,0.063,126.93,126.92,40.91587184]
[1744763960016,0.063,126.95,126.93,0.14216157]
[1744763960215,0.063,126.95,126.94,40.77371027]
[1744763960834,0.063,126.95,126.92,83.0]
[1744763961219,1.6629,126.94,126.92,83.0]
[1744763961532,16.43661027,126.94,126.9,14.77371027]
[1744763961731,1.6629,126.94,126.9,14.77371027]
[1744763962348,1.6629,126.94,126.91,14.77371027]
[1744763963138,9.54116068,126.94,126.91,14.77371027]
[1744763964043,1.6629,126.94,126.92,14.77371027]
[1744763964711,0.063,126.95,126.93,14.77371027]
[1744763964907,0.063,126.95,126.94,40.77371027]
[1744763965337,0.063,126.95,126.94,48.65144778]
[1744763965741,0.063,126.95,126.94,48.79360935]
[1744763966052,0.063,126.95,126.94,33.87773751]
[1744763966249,0.063,126.95,126.94,48.65144778]
[1744763967235,0.063,126.95,126.94,40.77371027]
[1744763967441,0.063,126.95,126.94,14.77371027]
[1744763968840,0.063,126.95,126.93,14.77371027]
[1744763969563,0.063,126.95,126.94,14.77371027]
[1744763970943,0.063,126.95,126.93,14.77371027]
[1744763971148,0.063,126.95,126.92,14.77371027]
[1744763972129,0.063,126.95,126.93,14.77371027]
[1744763972645,0.063,126.95,126.94,14.77371027]
[1744763974739,0.063,126.95,126.93,14.77371027]
[1744763975955,0.063,126.95,126.91,40.77371027]
[1744763976139,33.48635913,126.95,126.9,14.77371027]
[1744763976737,7.87773751,126.94,126.91,14.77371027]
[1744763977343,7.87773751,126.94,126.9,14.77371027]
[1744763977527,33.42335913,126.93,126.88,14.77371027]
[1744763977735,33.42335913,126.93,126.89,26.0]
[1744763977941,33.42335913,126.93,126.89,40.77371027]
[1744763978252,19.81773751,126.94,126.9,14.77371027]
[1744763978437,19.81773751,126.94,126.89,26.0]
[1744763978438,19.81773751,126.94,126.91,14.77371027]
[1744763978950,34.59144778,126.94,126.9,14.77371027]
[1744763979533,33.42335913,126.93,126.89,40.77371027]
[1744763979855,33.42335913,126.93,126.89,26.0]
[1744763980461,33.42335913,126.93,126.87,0.063]
[1744763980462,1.5905,126.9,126.87,0.063]
[1744763980630,1.5905,126.9,126.87,14.83671027]
[1744763980961,9.47083488,126.9,126.88,14.77371027]
[1744763981634,1.5905,126.9,126.88,14.77371027]
[1744763981834,7.87992174,126.91,126.89,14.77371027]
[1744763983157,1.6422,126.93,126.9,14.77371027]
[1744763983355,11.94,126.94,126.92,14.77371027]
[1744763983547,11.94,126.94,126.93,14.77371027]
[1744763984249,19.81773751,126.94,126.92,14.77371027]
[1744763986161,19.81773751,126.94,126.91,14.77371027]
[1744763986658,19.81773751,126.94,126.9,26.0]
[1744763986832,19.81773751,126.94,126.91,14.77371027]
[1744763989843,19.81773751,126.94,126.9,14.77371027]
[1744763990047,33.42335913,126.93,126.89,40.77371027]
[1744763990557,14.77371027,126.92,126.87,0.063]
[1744763990739,7.88022064,126.9,126.87,14.83671027]
[1744763993163,1.5049,126.91,126.88,14.77371027]
[1744763993471,1.5049,126.91,126.89,14.77371027]
[1744763993858,9.38459405,126.91,126.88,14.77371027]
[1744763994762,1.5049,126.91,126.88,14.77371027]
[1744763994958,1.5049,126.91,126.89,14.77371027]
[1744763995259,19.9396,126.94,126.9,14.77371027]
[1744763995469,21.46068166,126.94,126.91,14.77371027]
[1744763995987,21.46068166,126.94,126.9,14.77371027]
[1744763996179,55.92873571,126.94,126.89,14.77371027]
[1744763997265,41.15502544,126.94,126.9,14.77371027]
[1744763997457,21.46068166,126.94,126.91,14.77371027]
[1744763998570,9.52068166,126.94,126.91,14.77371027]
[1744763999476,1.6425,126.94,126.92,14.77371027]
[1744763999653,7.94012649,126.95,126.93,14.77371027]
[1744763999847,7.94012649,126.95,126.92,14.77371027]
[1744764000045,0.063,126.95,126.93,14.77371027]
[1744764000452,7.94017655,126.95,126.93,14.77371027]
[1744764000869,7.94017655,126.95,126.92,14.77371027]
[1744764001171,22.71388682,126.95,126.9,14.77371027]
[1744764001356,14.77371027,126.94,126.9,14.77371027]
[1744764001668,14.77371027,126.94,126.89,14.77371027]
[1744764001873,7.94017655,126.95,126.87,0.063]
[1744764001874,14.77371027,126.9,126.87,0.063]
[1744764003066,7.88084167,126.89,126.87,0.063]
[1744764004572,14.77371027,126.88,126.87,0.063]
[1744764004878,22.65517306,126.88,126.87,0.063]
[1744764005770,7.88146279,126.88,126.87,0.063]
[1744764006981,41.30482192,126.88,126.87,0.063]
[1744764007674,41.44698349,126.88,126.87,0.063]
[1744764007980,34.45377322,126.88,126.87,1e-08]
[1744764008169,49.22748349,126.88,126.87,1e-08]
[1744764008478,34.31161165,126.88,126.87,1e-08]
[1744764008953,49.08532192,126.88,126.87,1e-08]
[1744764009154,49.22748349,126.88,126.87,1e-08]
[1744764009883,18.79181043,126.87,126.84,0.063]
[1744764010056,33.42335913,126.85,126.84,0.063]
[1744764010380,18.64964886,126.85,126.84,0.063]
[1744764011364,26.53297562,126.85,126.84,0.063]
[1744764013076,41.30668589,126.85,126.84,0.063]
[1744764013286,41.44884746,126.85,126.84,1e-08]
[1744764013776,0.14216157,126.84,126.81,0.063]
[1744764013976,59.5655207,126.82,126.81,0.063]
[1744764014179,18.64964886,126.82,126.81,0.063]
[1744764014762,6.553,126.83,126.81,0.063]
[1744764015179,33.42335913,126.82,126.81,0.063]
[1744764015388,41.30855074,126.82,126.81,0.063]
[1744764015566,7.88519161,126.82,126.81,0.063]
[1744764016083,18.64964886,126.84,126.81,0.063]
[1744764016387,33.42335913,126.83,126.81,0.063]
[1744764016573,14.77371027,126.82,126.81,0.063]
[1744764017689,22.65890188,126.82,126.81,0.063]
[1744764018271,41.45071231,126.82,126.81,0.063]
[1744764018470,41.45071231,126.82,126.81,1e-08]
[1744764019200,0.14216157,126.8,126.77,0.063]
[1744764019370,33.42335913,126.78,126.77,0.063]
[1744764019888,26.5373283,126.78,126.77,0.063]
[1744764020999,7.88767944,126.78,126.77,0.063]
[1744764021178,26.5369487,126.79,126.77,0.063]
[1744764023193,41.31065897,126.79,126.77,0.063]
[1744764023394,14.77371027,126.78,126.77,0.063]
[1744764025492,7.88767944,126.78,126.77,0.063]
[1744764026497,26.53687818,126.79,126.77,14.83671027]
[1744764028299,26.53687818,126.79,126.77,0.063]
[1744764033176,49.91193097,126.78,126.77,1e-08]
[1744764033388,49.10990014,126.78,126.77,1e-08]
[1744764033791,34.1940283,126.78,126.77,1e-08]
[1744764034510,48.96773857,126.78,126.77,1e-08]
[1744764035502,49.10990014,126.78,126.77,1e-08]
[1744764036390,48.96773857,126.78,126.77,1e-08]
[1744764037908,42.88373857,126.78,126.77,1e-08]
[1744764038798,26.5373283,126.78,126.77,1e-08]
[1744764038998,7.88705733,126.79,126.77,14.77371028]
[1744764039720,7.88705733,126.79,126.77,1e-08]
[1744764039908,7.88705733,126.79,126.77,14.77371028]
[1744764041082,7.88705733,126.79,126.77,1e-08]
[1744764043108,18.64964886,126.78,126.77,1e-08]
[1744764044515,7.88767944,126.78,126.77,1e-08]
[1744764044994,41.31103857,126.78,126.77,1e-08]
[1744764045502,26.5373283,126.78,126.77,1e-08]
[1744764046693,41.45320014,126.78,126.77,1e-08]
[1744764046892,103.76201041,126.78,126.77,1e-08]
[1744764048117,88.98830014,126.78,126.77,1e-08]
[1744764048415,68.98830014,126.78,126.77,1e-08]
[1744764049792,54.21458987,126.78,126.77,1e-08]
[1744764049995,68.98830014,126.78,126.77,1e-08]
[1744764050491,88.98830014,126.78,126.77,1e-08]
[1744764050909,0.14216157,126.76,126.74,0.03]
[1744764051116,26.71371027,126.75,126.74,0.03]
[1744764051506,45.5055207,126.75,126.74,0.03]
[1744764051905,53.39506705,126.75,126.74,0.03]
[1744764052795,38.47919521,126.75,126.74,0.03]
[1744764053420,53.25290548,126.75,126.74,0.03]
[1744764054099,38.47919521,126.75,126.74,0.03]
[1744764055211,53.25290548,126.75,126.74,0.03]
[1744764055910,53.39506705,126.75,126.74,0.03]
[1744764058417,53.39506705,126.75,126.74,1e-08]
[1744764059644,79.39506705,126.75,126.74,1e-08]
[1744764059797,53.39506705,126.75,126.74,1e-08]
[1744764060704,54.97516705,126.75,126.74,1e-08]
[1744764062712,44.64964886,126.72,126.71,0.03]
[1744764062914,59.42335913,126.72,126.71,0.03]
[1744764064935,67.31477327,126.72,126.71,0.03]
[1744764066626,41.31477327,126.72,126.71,0.03]
[1744764073120,36.01694596,126.72,126.71,0.03]
[1744764075750,26.541063,126.72,126.71,0.03]
[1744764075920,26.0,126.73,126.71,9.50588296]
[1744764075921,18.64964886,126.73,126.71,9.50588296]
[1744764076125,9.47588296,126.72,126.71,0.03]
[1744764076441,28.12553182,126.72,126.71,0.03]
[1744764076629,28.26769339,126.72,126.71,0.03]
[1744764076940,18.64964886,126.72,126.71,0.03]
[1744764078023,36.15910753,126.72,126.71,0.03]
[1744764080147,0.14216157,126.7,126.69,0.03]
[1744764080328,64.79181043,126.69,126.68,1e-08]
[1744764080528,0.14216157,126.68,126.67,1e-08]
[1744764080722,18.64964886,126.65,126.64,0.03]
[1744764080926,40.06553182,126.65,126.64,0.03]
[1744764081235,44.79181043,126.63,126.54,90.6477]
[1744764081428,18.64964886,126.62,126.61,1e-08]
[1744764081751,28.26769339,126.62,126.61,1e-08]
[1744764081957,44.79181043,126.59,126.52,9.47588296]
[1744764082126,47.96567402,126.58,126.52,9.47588296]
[1744764082751,68.10783559,126.58,126.57,1e-08]
[1744764082931,69.65493559,126.58,126.57,1e-08]
[1744764083125,75.02372257,126.58,126.57,1e-08]
[1744764083745,104.91672927,126.58,126.57,1e-08]
[1744764084060,101.02372257,126.58,126.57,1e-08]
[1744764085248,79.47662257,126.58,126.57,1e-08]
[1744764085455,67.53662257,126.58,126.57,1e-08]
[1744764085661,79.47662257,126.58,126.57,1e-08]
[1744764086332,79.334461,126.58,126.57,1e-08]
[1744764086556,38.48979106,126.58,126.57,1e-08]
[1744764087332,53.334461,126.58,126.57,1e-08]
[1744764087543,53.47662257,126.58,126.57,1e-08]
[1744764089252,73.47662257,126.58,126.57,1e-08]
[1744764089554,99.47662257,126.58,126.57,1e-08]
[1744764089756,73.47662257,126.58,126.57,1e-08]
[1744764090952,44.79181043,126.55,126.48,6.5278]
[1744764091141,18.64964886,126.51,126.48,21.37246994]
[1744764091940,18.64964886,126.51,126.48,14.84466994]
[1744764092138,18.64964886,126.51,126.47,1.1986]
[1744764092331,18.64964886,126.49,126.46,14.84466994]
[1744764092741,26.5556862,126.49,126.46,14.84466994]
[1744764092952,18.64964886,126.5,126.48,14.84466994]
[1744764094258,41.39883227,126.51,126.47,14.84466994]
[1744764094760,41.39883227,126.51,126.45,14.33200121]
[1744764095054,41.39883227,126.51,126.47,14.84466994]
[1744764095442,18.64964886,126.5,126.48,14.84466994]
[1744764095944,18.64964886,126.5,126.47,14.84466994]
[1744764096559,7.90528084,126.5,126.46,14.84466994]
[1744764097430,0.14216157,126.48,126.44,1.1986]
[1744764097635,14.98683151,126.48,126.43,14.84466994]
[1744764097851,26.55731249,126.46,126.42,90.97297999]
[1744764098136,11.94,126.47,126.45,14.84466994]
[1744764098443,11.94,126.47,126.46,14.84466994]
[1744764099847,26.55454487,126.51,126.46,22.75188841]
[1744764100055,18.64964886,126.52,126.5,14.84466994]
[1744764100259,18.64964886,126.52,126.49,14.84466994]
[1744764100846,18.64964886,126.49,126.43,7.90951514]
[1744764101061,33.4943188,126.47,126.42,105.74736994]
[1744764101359,18.64964886,126.45,126.42,22.74736994]
[1744764101555,18.64964886,126.45,126.42,0.063]
[1744764102047,26.55834869,126.45,126.42,14.90766994]
[1744764102360,14.84466994,126.47,126.44,14.84466994]
[1744764102361,18.64964886,126.46,126.44,14.84466994]
[1744764102567,18.64964886,126.46,126.42,0.063]
[1744764103072,18.64964886,126.46,126.42,14.90766994]
[1744764104137,7.90826413,126.45,126.42,0.063]
[1744764104333,7.90826413,126.45,126.42,14.90766994]
[1744764104862,7.90826413,126.45,126.42,0.063]
[1744764105262,42.52359441,126.45,126.42,0.063]
[1744764105446,7.90826413,126.45,126.42,14.90766994]
[1744764105755,7.90826413,126.45,126.42,0.063]
[1744764106251,33.63648037,126.44,126.42,0.063]
[1744764106451,45.57648037,126.43,126.42,0.063]
[1744764106839,30.58964886,126.43,126.42,0.063]
[1744764107047,11.94,126.43,126.42,0.063]
[1744764107540,18.64964886,126.44,126.42,0.063]
[1744764107739,18.64964886,126.44,126.41,14.84466994]
[1744764108072,33.4943188,126.44,126.4,14.84466994]
[1744764108243,7.90951514,126.43,126.4,14.84466994]
[1744764108440,7.90951514,126.43,126.39,40.84466994]
[1744764109076,7.90951514,126.43,126.36,90.91367317]
[1744764109247,33.4943188,126.42,126.38,14.84466994]
[1744764109569,18.64964886,126.42,126.39,14.84466994]
[1744764109768,7.90951514,126.43,126.41,14.84466994]
[1744764110061,26.55877321,126.44,126.42,14.84466994]
[1744764110248,19.84848737,126.45,126.43,14.84466994]
[1744764110448,19.84848737,126.45,126.39,26.0]
[1744764110748,19.84848737,126.45,126.42,14.84466994]
[1744764111068,19.84848737,126.45,126.41,14.84466994]
[1744764111767,19.84848737,126.45,126.42,14.84466994]
[1744764112462,19.84848737,126.45,126.4,33.91110755]
[1744764112668,19.84848737,126.45,126.42,14.84466994]
[1744764113953,18.64964886,126.44,126.41,14.84466994]
[1744764114268,18.64964886,126.44,126.4,14.84466994]
[1744764115148,33.4943188,126.44,126.4,14.84466994]
[1744764116049,7.90951514,126.43,126.41,14.84466994]
[1744764116457,11.94,126.45,126.42,14.84466994]
[1744764116652,11.94,126.45,126.43,14.84466994]
[1744764116962,11.94,126.45,126.42,14.84466994]
[1744764117348,18.64964886,126.44,126.41,14.84466994]
[1744764118177,18.64964886,126.44,126.39,33.91190066]
[1744764118358,33.4943188,126.42,126.36,83.0]
[1744764118682,18.64964886,126.4,126.36,97.84466994]
[1744764118877,18.64964886,126.4,126.36,123.84466994]
[1744764119057,18.64964886,126.4,126.37,14.84466994]
[1744764119695,18.64964886,126.4,126.35,0.063]
[1744764119876,30.60964886,126.4,126.37,14.84466994]
[1744764120184,30.60964886,126.4,126.35,7.97743353]
[1744764120481,11.96,126.44,126.39,14.84466994]
[1744764120678,11.96,126.44,126.43,14.84466994]
[1744764121255,19.86895963,126.44,126.42,14.84466994]
[1744764121588,11.96,126.44,126.42,14.84466994]
[1744764121951,11.96,126.44,126.43,14.84466994]
[1744764123186,1.5629,126.47,126.43,14.84466994]
[1744764123478,18.64964886,126.47,126.42,14.84466994]
[1744764123665,11.96,126.48,126.45,14.84466994]
[1744764124579,7.90728047,126.47,126.45,14.84466994]
[1744764124792,18.64964886,126.47,126.45,14.84466994]
[1744764124958,18.64964886,126.47,126.46,14.84466994]
[1744764126782,11.96,126.48,126.46,14.84466994]
[1744764126974,11.96,126.48,126.47,14.84466994]
[1744764128777,246.73,126.51,126.47,22.75168346]
[1744764128982,0.03,126.51,126.5,14.84466994]
[1744764129563,0.03,126.51,126.49,14.84466994]
[1744764130583,26.58465293,126.51,126.47,14.84466994]
[1744764130781,26.58465293,126.51,126.48,14.84466994]
[1744764130959,0.03,126.51,126.5,14.84466994]
[1744764132781,0.03,126.51,126.5,22.74980827]
[1744764135194,0.03,126.51,126.5,48.74980827]
[1744764135396,0.03,126.54,126.5,48.74980827]
[1744764135397,0.03,126.54,126.53,55.68933988]
[1744764136091,0.03,126.54,126.53,40.84466994]
[1744764136997,0.03,126.54,126.53,55.68933988]
[1744764137295,0.03,126.54,126.53,63.59260392]
[1744764137490,0.03,126.54,126.53,40.84466994]
[1744764137871,0.03,126.54,126.53,14.84466994]
[1744764138184,0.03,126.54,126.53,26.0]
[1744764138583,0.03,126.54,126.53,40.84466994]
[1744764139690,0.03,126.54,126.53,48.74793398]
[1744764140401,0.03,126.54,126.53,40.84466994]
[1744764143298,18.67964886,126.54,126.5,83.0]
[1744764143603,26.58291288,126.54,126.5,97.84466994]
[1744764143809,26.58291288,126.54,126.5,83.0]
[1744764143989,26.58291288,126.54,126.5,97.84466994]
[1744764144183,26.58291288,126.54,126.51,14.84466994]
[1744764145002,18.64964886,126.51,126.44,38.21146731]
[1744764145198,18.64964886,126.51,126.48,14.84466994]
[1744764145375,18.64964886,126.51,126.47,14.84466994]
[1744764145582,7.90513833,126.5,126.47,14.84466994]
[1744764146024,20.27974886,126.49,126.46,14.84466994]
[1744764146321,20.27974886,126.49,126.46,40.84466994]
[1744764146518,19.76245912,126.51,126.48,14.84466994]
[1744764146519,26.55435071,126.51,126.48,14.84466994]
[1744764146685,26.55435071,126.51,126.46,26.0]
[1744764146686,26.55435071,126.51,126.49,14.84466994]
[1744764146887,9.53433874,126.52,126.5,14.84466994]
[1744764148317,18.64964886,126.51,126.46,26.0]
[1744764148501,18.64964886,126.51,126.48,14.84466994]
[1744764148705,18.64964886,126.51,126.49,14.84466994]
[1744764148900,9.53433874,126.52,126.49,14.84466994]
[1744764149206,9.53433874,126.52,126.5,14.84466994]
[1744764149207,1.6301,126.52,126.5,14.84466994]
[1744764150195,7.90394914,126.52,126.5,14.84466994]
[1744764151325,7.90394914,126.52,126.47,7.90671875]
[1744764151626,7.90394914,126.52,126.48,14.84466994]
[1744764152717,7.90394914,126.52,126.49,14.84466994]
[1744764154832,38.49306479,126.53,126.51,14.84466994]
[1744764155833,38.49306479,126.53,126.5,14.84466994]
[1744764156939,11.94,126.53,126.52,14.84466994]
[1744764157110,0.03,126.54,126.52,14.84466994]
[1744764157309,0.03,126.54,126.53,14.84466994]
[1744764161208,20.18324886,126.53,126.45,13.1386]
[1744764161414,14.84466994,126.52,126.47,14.84466994]
[1744764161613,33.4943188,126.51,126.47,14.84466994]
[1744764161925,18.64964886,126.51,126.47,14.84466994]
[1744764162640,18.64964886,126.51,126.46,97.84466994]
[1744764162641,14.84466994,126.5,126.46,97.84466994]
[1744764162934,7.90513833,126.5,126.47,14.84466994]
[1744764163138,7.90451347,126.51,126.49,14.84466994]
[1744764163639,7.90451347,126.51,126.48,14.84466994]
[1744764166819,26.54344886,126.53,126.5,14.84466994]
[1744764167021,1.5336,126.53,126.51,14.84466994]
[1744764168145,1.5336,126.53,126.49,7.90540734]
[1744764168146,9.43686943,126.53,126.5,14.84466994]
[1744764169247,9.43686943,126.53,126.51,14.84466994]
[1744764169752,1.5336,126.53,126.51,14.84466994]
[1744764169927,9.43700872,126.53,126.51,14.84466994]
[1744764170530,9.43700872,126.53,126.5,14.84466994]
[1744764171421,18.64964886,126.52,126.49,14.84466994]
[1744764171754,14.84466994,126.52,126.47,40.84466994]
[1744764172122,33.4943188,126.52,126.47,40.84466994]
[1744764172323,18.64964886,126.52,126.48,14.84466994]
[1744764172819,18.64964886,126.52,126.49,14.84466994]
[1744764173645,1.5336,126.53,126.49,14.84466994]
[1744764173835,1.5336,126.53,126.52,14.84466994]
[1744764174151,0.03,126.54,126.52,14.84466994]
[1744764174345,0.03,126.54,126.53,14.84466994]
[1744764175731,0.03,126.54,126.53,22.74793398]
[1744764178348,0.03,126.54,126.53,37.59260392]
[1744764180056,0.03,126.58,126.56,26.0]
[1744764180359,0.03,126.58,126.57,14.84466994]
[1744764180858,0.03,126.58,126.53,83.0]
[1744764181035,14.84466994,126.56,126.52,14.84466994]
[1744764182157,7.90201501,126.55,126.52,14.84466994]
[1744764183563,7.90139064,126.56,126.54,14.84466994]
[1744764183771,14.35785099,126.57,126.55,14.84466994]
[1744764184569,14.35785099,126.57,126.53,26.0]
[1744764184870,14.35785099,126.57,126.54,14.84466994]
[1744764185163,33.00749985,126.57,126.54,23.73369341]
[1744764185555,42.38334227,126.56,126.52,23.73369341]
[1744764185752,1.597,126.55,126.52,23.73369341]
[1744764185961,1.597,126.55,126.51,49.73369341]
[1744764186147,1.597,126.55,126.51,23.73369341]
[1744764186461,7.90263948,126.54,126.51,49.73369341]
[1744764186767,1.597,126.55,126.52,23.73369341]
[1744764187069,26.55135142,126.56,126.54,23.73369341]
[1744764187259,26.55135142,126.56,126.53,23.73369341]
[1744764188975,18.64964886,126.54,126.48,83.0]
[1744764189269,42.38334227,126.53,126.48,83.0]
[1744764189459,25.28819341,126.52,126.48,106.73369341]
[1744764189776,18.64964886,126.51,126.48,106.73369341]
[1744764190475,7.90513833,126.5,126.47,0.063]
[1744764190769,18.64964886,126.51,126.48,23.73369341]
[1744764191147,18.64964886,126.51,126.49,23.73369341]
[1744764191771,7.8695,126.52,126.49,23.73369341]
[1744764192873,15.77367733,126.52,126.49,23.73369341]
[1744764193079,1.5545,126.52,126.5,23.73369341]
[1744764193373,30.54964886,126.53,126.51,23.73369341]
[1744764193579,38.45295627,126.53,126.5,23.73369341]
[1744764194264,38.45295627,126.53,126.51,23.73369341]
[1744764197969,38.45295627,126.53,126.5,23.73369341]
[1744764198587,42.38334227,126.52,126.48,26.0]
[1744764198770,18.64964886,126.5,126.47,0.063]
[1744764199981,7.9336,126.51,126.47,0.063]
[1744764200283,7.9057633,126.49,126.47,0.063]
[1744764203382,18.64964886,126.48,126.47,0.063]
[1744764204887,26.55603722,126.48,126.47,0.063]
[1744764206789,62.20973063,126.48,126.47,0.063]
[1744764207279,53.47883141,126.48,126.47,0.063]
[1744764207489,53.47883141,126.48,126.47,1e-08]
[1744764207658,55.06433141,126.48,126.47,1e-08]
[1744764210283,44.64964886,126.45,126.44,0.063]
[1744764210467,59.65244305,126.45,126.44,0.063]
[1744764211085,26.55791299,126.45,126.44,0.063]
[1744764212291,41.41854561,126.45,126.44,0.063]
[1744764214189,41.56070718,126.45,126.44,0.063]
[1744764217085,41.41854561,126.45,126.44,0.063]
[1744764217398,26.55791299,126.45,126.44,0.063]
[1744764217980,18.64964886,126.46,126.44,14.92363262]
[1744764218279,7.90701352,126.47,126.44,14.92363262]
[1744764219199,7.90701352,126.47,126.45,14.86063262]
[1744764219389,19.82660994,126.48,126.46,14.86063262]
[1744764221907,11.92,126.48,126.47,14.86063262]
[1744764222575,11.92,126.48,126.44,7.97174299]
[1744764222775,11.92,126.48,126.47,14.86063262]
[1744764223796,19.76124106,126.52,126.47,29.72126524]
[1744764223797,11.9,126.52,126.47,29.72126524]
[1744764223992,11.9,126.52,126.46,26.0]
[1744764223993,11.9,126.52,126.51,14.86063262]
[1744764224196,19.80388871,126.52,126.5,14.86063262]
[1744764224508,18.64964886,126.51,126.48,14.86063262]
[1744764224687,18.64964886,126.51,126.49,14.86063262]
[1744764224896,18.64964886,126.51,126.48,14.86063262]
[1744764225208,18.64964886,126.51,126.49,14.86063262]
[1744764225803,26.55427953,126.51,126.49,14.86063262]
[1744764226000,11.9,126.52,126.5,14.86063262]
[1744764226208,11.9,126.52,126.51,14.86063262]
[1744764227306,18.64964886,126.55,126.51,14.86063262]
[1744764227680,18.64964886,126.55,126.52,14.86063262]
[1744764227886,19.80139064,126.56,126.54,14.86063262]
[1744764228910,26.5510395,126.56,126.55,14.86063262]
[1744764229107,18.64964886,126.56,126.55,14.86063262]
[1744764231022,26.5510395,126.56,126.55,14.86063262]
[1744764231310,26.5510395,126.56,126.53,14.86063262]
[1744764231693,26.5510395,126.56,126.54,14.86063262]
[1744764231988,7.90139064,126.56,126.54,14.86063262]
[1744764234017,26.5806768,126.57,126.54,14.86063262]
[1744764234314,0.03,126.57,126.56,14.86063262]
[1744764235103,0.03,126.57,126.55,14.86063262]
[1744764235397,0.03,126.57,126.54,14.86063262]
[1744764236594,0.03,126.57,126.53,14.86063262]
[1744764237319,14.86063262,126.56,126.48,105.42779419]
[1744764237622,18.64964886,126.54,126.5,14.86063262]
[1744764238098,18.64964886,126.54,126.51,14.86063262]
[1744764238616,7.90326404,126.53,126.51,14.86063262]
[1744764238826,7.90326404,126.53,126.5,14.86063262]
[1744764239814,7.90326404,126.53,126.51,14.86063262]
[1744764240409,26.55255758,126.54,126.51,14.86063262]
[1744764240623,11.9,126.55,126.53,14.86063262]
[1744764240806,26.5804642,126.57,126.54,14.86063262]
[1744764241007,26.5804642,126.57,126.55,14.86063262]
[1744764241930,26.5804642,126.57,126.52,33.90328076]
[1744764241931,26.5804642,126.57,126.54,14.86063262]
[1744764242442,26.5804642,126.57,126.55,14.86063262]
[1744764242606,26.5804642,126.57,126.54,14.86063262]
[1744764242810,26.5804642,126.57,126.53,14.86063262]
[1744764243026,26.5804642,126.57,126.54,14.86063262]
[1744764243621,26.5804642,126.57,126.52,26.0]
[1744764243622,46.33238013,126.57,126.53,14.86063262]
[1744764243834,61.19301275,126.57,126.53,14.86063262]
[1744764244129,18.64964886,126.55,126.52,14.86063262]